bitfinex/quotes_BTCUSD_20251124
["timestamp","ask_amount","ask_price","bid_price","bid_amount"]
[1763955576219,0.323,87664.0,87657.0,0.0065825]
[1763955576397,0.323,87662.0,87657.0,0.0065825]
[1763955576568,0.323,87658.0,87657.0,0.0065825]
[1763955576770,2.323,87658.0,87657.0,0.0065825]
[1763955576969,2.323,87658.0,87657.0,0.0574125]
[1763955577403,0.323,87658.0,87657.0,0.0574125]
[1763955577677,0.323,87662.0,87657.0,0.0574125]
[1763955577897,2.0,87663.0,87661.0,0.02751]
[1763955578188,2.0,87669.0,87662.0,0.01604]
[1763955579235,2.0,87662.0,87658.0,0.00646525]
[1763955579438,2.01140758,87661.0,87652.0,0.00724]
[1763955579755,2.0,87661.0,87653.0,0.00724]
[1763955579956,0.09122371,87661.0,87653.0,0.00724]
[1763955580103,0.10263129,87661.0,87653.0,0.00724]
[1763955580304,0.10263129,87661.0,87654.0,0.00724]
[1763955580655,0.23956773,87658.0,87654.0,0.00724]
[1763955580856,0.02137572,87657.0,87654.0,0.00724]
[1763955581056,0.02137572,87656.0,87654.0,0.00724]
[1763955581206,0.02137572,87655.0,87654.0,0.00724]
[1763955581407,0.02137572,87655.0,87648.0,0.01147]
[1763955581650,0.02137572,87654.0,87651.0,0.00724]
[1763955581824,0.02137572,87653.0,87651.0,0.00724]
[1763955582023,0.02137572,87652.0,87651.0,0.00724]
[1763955582423,0.02137572,87652.0,87651.0,0.02328]
[1763955582806,0.09122371,87660.0,87651.0,0.030312]
[1763955583008,0.09122371,87660.0,87651.0,0.031312]
[1763955584308,0.09122371,87660.0,87651.0,0.024072]
[1763955584505,0.09122371,87660.0,87652.0,0.00724]
[1763955585172,0.00268,87659.0,87652.0,0.00724]
[1763955585370,0.323,87666.0,87660.0,0.01618]
[1763955585582,0.323,87664.0,87660.0,0.01618]
[1763955585721,2.0,87663.0,87661.0,0.02544]
[1763955586120,0.323,87663.0,87652.0,0.03268]
[1763955586540,0.323,87662.0,87652.0,0.03268]
[1763955586743,0.01140758,87661.0,87653.0,0.00724]
[1763955586944,1.18459428,87662.0,87653.0,0.00724]
[1763955589100,1.18459428,87662.0,87650.0,0.01225]
[1763955589272,0.00268,87654.0,87651.0,0.00724]
[1763955589475,0.323,87660.0,87652.0,0.00724]
[1763955589859,0.323,87660.0,87653.0,0.01283]
[1763955590500,0.323,87661.0,87653.0,0.01283]
[1763955591854,0.33440654,87669.0,87653.0,0.01283]
[1763955591993,0.323,87665.0,87653.0,0.01283]
[1763955592190,0.323,87663.0,87654.0,0.00724]
[1763955592643,0.323,87663.0,87662.0,0.01283]
[1763955593220,0.323,87665.0,87655.0,0.02544]
[1763955593470,0.323,87663.0,87655.0,0.02544]
[1763955594703,0.0213884,87662.0,87655.0,0.02544]
[1763955594904,0.0213884,87661.0,87655.0,0.02544]
[1763955595118,0.0213884,87660.0,87655.0,0.02544]
[1763955595277,0.02139394,87659.0,87655.0,0.02544]
[1763955595479,0.323,87662.0,87655.0,0.02544]
[1763955595832,0.02139389,87661.0,87655.0,0.02544]
[1763955596015,0.02139389,87660.0,87655.0,0.02544]
[1763955596198,0.323,87662.0,87655.0,0.02544]
[1763955596424,0.02139871,87661.0,87655.0,0.02544]
[1763955596624,0.02139871,87660.0,87655.0,0.02544]
[1763955596964,0.323,87667.0,87655.0,0.02544]
[1763955597203,0.323,87663.0,87655.0,0.02544]
[1763955597369,0.02139849,87662.0,87655.0,0.02544]
[1763955597641,0.323,87663.0,87655.0,0.02544]
[1763955597642,0.323,87663.0,87662.0,0.02901]
[1763955597847,0.34440356,87663.0,87662.0,0.01283]
[1763955598062,0.34440356,87663.0,87662.0,0.02901]
[1763955598266,0.02140356,87663.0,87662.0,0.02901]
[1763955598449,0.02140356,87663.0,87662.0,0.03625]
[1763955598601,0.02140356,87663.0,87662.0,0.042419]
[1763955599121,0.02140356,87663.0,87662.0,0.01283]
[1763955599325,0.02140356,87663.0,87662.0,0.00724]
[1763955600741,0.02140356,87663.0,87662.0,0.02342]
[1763955600908,0.02140356,87663.0,87662.0,0.04886]
[1763955601122,2.0,87666.0,87662.0,0.02342]
[1763955601330,2.323,87664.0,87663.0,0.02544]
[1763955601684,2.323,87664.0,87663.0,0.031609]
[1763955601685,0.323,87664.0,87663.0,0.031609]
[1763955601890,0.323,87664.0,87663.0,0.047789]
[1763955602355,0.323,87663.0,87645.0,0.02544]
[1763955602562,0.323,87663.0,87640.0,0.0002]
[1763955602563,0.323,87654.0,87640.0,0.0002]
[1763955602763,0.323,87654.0,87646.0,0.00724]
[1763955603006,0.323,87654.0,87653.0,0.01618]
[1763955603338,0.323,87654.0,87653.0,0.04878791]
[1763955605257,0.323,87654.0,87653.0,0.001]
[1763955606070,0.323,87654.0,87653.0,0.04785]
[1763955606497,2.0,87668.0,87653.0,0.04785]
[1763955606713,2.0,87666.0,87655.0,0.09122371]
[1763955606936,0.01572486,87670.0,87656.0,0.01462607]
[1763955607149,2.0,87674.0,87669.0,0.02779]
[1763955607319,0.5,87689.0,87674.0,0.02779]
[1763955607477,0.323,87686.0,87674.0,0.02779]
[1763955607683,0.323,87686.0,87674.0,0.05177]
[1763955607883,0.323,87686.0,87674.0,0.058887]
[1763955608333,0.323,87686.0,87674.0,0.05927902]
[1763955608473,0.323,87689.0,87674.0,0.06027902]
[1763955609342,0.01584756,87679.0,87674.0,0.06027902]
[1763955609542,0.323,87698.0,87674.0,0.06751902]
[1763955609948,0.01598525,87679.0,87674.0,0.06851902]
[1763955611960,0.01598525,87679.0,87674.0,0.02179202]
[1763955612161,0.01598525,87679.0,87674.0,0.00239202]
[1763955612162,0.00258855,87675.0,87674.0,0.00239202]
[1763955612364,2.32558855,87675.0,87674.0,0.00239202]
[1763955612849,2.55503374,87675.0,87674.0,0.00139202]
[1763955613050,2.57640189,87675.0,87674.0,0.00139202]
[1763955613289,2.57640189,87675.0,87674.0,0.00039202]
[1763955614302,2.25340189,87675.0,87674.0,0.00039202]
[1763955614509,2.57640189,87675.0,87674.0,0.00039202]
[1763955615862,2.3469567,87675.0,87674.0,0.00039202]
[1763955617094,2.57507189,87675.0,87674.0,0.00039202]
[1763955617793,2.57640189,87675.0,87674.0,0.00039202]
[1763955620838,2.3482867,87675.0,87674.0,0.00039202]
[1763955621040,2.3469567,87675.0,87674.0,0.00039202]
[1763955621443,2.57640189,87675.0,87674.0,0.00039202]
[1763955621845,2.3456267,87675.0,87674.0,0.01602202]
[1763955622049,2.3456267,87675.0,87674.0,0.00039202]
[1763955622050,2.32425855,87675.0,87674.0,0.00039202]
[1763955622899,2.32425855,87675.0,87674.0,0.00139202]
[1763955623189,2.32425855,87675.0,87674.0,0.01802202]
[1763955623387,2.32425855,87675.0,87674.0,0.00239202]
[1763955624707,2.32558855,87675.0,87674.0,0.00239202]
[1763955624904,2.55370374,87675.0,87674.0,0.00239202]
[1763955625106,2.32558855,87675.0,87674.0,0.00239202]
[1763955625494,2.32558855,87675.0,87674.0,0.00139202]
[1763955625687,2.55370374,87675.0,87674.0,0.00039202]
[1763955626498,2.57641299,87675.0,87674.0,0.00039202]
[1763955626731,2.5776352,87675.0,87674.0,0.00039202]
[1763955627745,0.01140862,87653.0,87641.0,0.0001]
[1763955627945,0.41422371,87649.0,87642.0,0.00036661]
[1763955628180,0.323,87649.0,87642.0,0.00036661]
[1763955628399,0.32433,87643.0,87642.0,0.00036661]
[1763955628613,2.55252848,87643.0,87642.0,0.00036661]
[1763955628822,2.41192838,87643.0,87642.0,0.00036661]
[1763955629637,2.64012686,87643.0,87642.0,0.00036661]
[1763955630221,2.55385848,87643.0,87642.0,0.00036661]
[1763955630625,2.55252848,87643.0,87642.0,0.00036661]
[1763955630839,2.32890587,87643.0,87642.0,0.00036661]
[1763955631814,2.41364889,87643.0,87642.0,0.00036661]
[1763955632017,2.43500336,87643.0,87642.0,0.00036661]
[1763955632471,2.66320184,87643.0,87642.0,0.00036661]
[1763955633063,2.66520184,87643.0,87642.0,0.00036661]
[1763955633664,2.66520184,87643.0,87641.0,0.0001]
[1763955633665,2.55120109,87642.0,87641.0,0.0001]
[1763955633877,2.55120109,87642.0,87630.0,0.0002]
[1763955633878,0.55122973,87631.0,87630.0,0.0002]
[1763955634209,2.66380791,87631.0,87630.0,0.00031787]
[1763955634723,2.66380791,87631.0,87630.0,0.00069186]
[1763955635388,2.6637554,87631.0,87630.0,0.00069186]
[1763955635633,2.55125578,87621.0,87620.0,0.0002]
[1763955635854,2.55125578,87621.0,87620.0,0.00031796]
[1763955636068,2.63608865,87621.0,87620.0,0.00031796]
[1763955636690,2.40783287,87621.0,87620.0,0.00031796]
[1763955636908,2.41999287,87621.0,87620.0,0.00031796]
[1763955641093,2.44126127,87621.0,87620.0,0.00062969]
[1763955641788,2.66951705,87621.0,87620.0,0.00062969]
[1763955644848,2.66951705,87621.0,87600.0,0.0002]
[1763955644849,2.55128183,87611.0,87600.0,0.0002]
[1763955645045,2.55130789,87601.0,87600.0,0.0002]
[1763955645344,2.57257629,87601.0,87600.0,0.00059321]
[1763955645570,2.58463629,87601.0,87600.0,0.00059321]
[1763955646267,2.58563629,87601.0,87600.0,0.00059321]
[1763955649796,2.3573284,87601.0,87600.0,0.00059321]
[1763955649990,2.58563629,87601.0,87600.0,0.00059321]
[1763955651085,2.3573284,87601.0,87600.0,0.00059321]
[1763955651960,2.3573284,87601.0,87600.0,0.01674321]
[1763955652155,0.3573284,87601.0,87600.0,0.01674321]
[1763955652393,0.3573284,87601.0,87600.0,0.00059321]
[1763955652596,2.3573284,87601.0,87600.0,0.00059321]
[1763955652913,2.58563629,87601.0,87600.0,0.00059321]
[1763955653577,2.3573284,87601.0,87600.0,0.00059321]
[1763955653790,2.58563629,87601.0,87600.0,0.00059321]
[1763955655668,2.58563629,87601.0,87600.0,0.00121682]
[1763955657119,2.3573284,87601.0,87600.0,0.00121682]
[1763955658027,2.3563284,87601.0,87600.0,0.00121682]
[1763955659123,2.3563284,87601.0,87600.0,0.01736682]
[1763955659939,0.3563284,87601.0,87600.0,0.01736682]
[1763955660146,0.3563284,87601.0,87600.0,0.04159682]
[1763955660147,0.0212684,87601.0,87600.0,0.04159682]
[1763955661138,0.02133812,87601.0,87600.0,0.04159682]
[1763955661531,0.02133812,87601.0,87600.0,0.01836682]
[1763955661735,0.02133812,87601.0,87600.0,0.00121682]
[1763955661893,0.02133812,87601.0,87600.0,0.04159682]
[1763955662092,0.02133812,87601.0,87600.0,0.04259682]
[1763955662722,0.02133812,87601.0,87600.0,0.01836682]
[1763955662919,0.02133812,87601.0,87600.0,0.00321682]
[1763955663438,2.34433812,87601.0,87600.0,0.00221682]
[1763955663782,2.57264601,87601.0,87600.0,0.00221682]
[1763955663989,2.57264601,87601.0,87600.0,0.00321682]
[1763955664206,2.10269296,87601.0,87600.0,0.00321682]
[1763955664607,2.10269296,87601.0,87600.0,0.04291682]
[1763955665029,2.10269296,87601.0,87600.0,0.04191682]
[1763955665229,1.90381188,87601.0,87600.0,0.04291682]
[1763955665406,0.323,87601.0,87600.0,0.04291682]
[1763955666523,0.03432955,87611.0,87600.0,0.01980682]
[1763955666704,0.03432955,87611.0,87600.0,0.01918321]
[1763955667044,0.03432955,87611.0,87600.0,0.04229321]
[1763955667358,0.03432955,87611.0,87600.0,0.01818321]
[1763955667547,0.58710847,87610.0,87600.0,0.01818321]
[1763955667697,0.03432955,87611.0,87601.0,0.02311]
[1763955669220,0.323,87610.0,87600.0,0.00059321]
[1763955670103,0.323,87608.0,87600.0,0.00059321]
[1763955670306,0.323,87606.0,87600.0,0.00059321]
[1763955670571,2.0,87609.0,87600.0,0.00059321]
[1763955670725,0.323,87606.0,87600.0,0.00059321]
[1763955672372,0.323,87606.0,87600.0,0.00259321]
[1763955672824,0.323,87606.0,87605.0,0.00046768]
[1763955673032,0.323,87606.0,87605.0,0.02891768]
[1763955673447,0.323,87606.0,87605.0,0.01232768]
[1763955673997,0.323,87606.0,87605.0,0.01332768]
[1763955674258,0.01206,87608.0,87605.0,0.00146768]
[1763955674259,0.02347448,87608.0,87605.0,0.00146768]
[1763955674468,0.55129486,87606.0,87605.0,0.001]
[1763955674676,0.55129486,87606.0,87605.0,0.002]
[1763955676100,2.55129486,87606.0,87605.0,0.002]
[1763955676305,2.57268744,87606.0,87605.0,0.002]
[1763955676874,2.57268744,87606.0,87605.0,0.001]
[1763955677255,2.55130789,87601.0,87600.0,0.00059321]
[1763955677618,2.34439258,87601.0,87600.0,0.00059321]
[1763955678649,0.34439258,87601.0,87600.0,0.00059321]
[1763955678846,0.34439258,87601.0,87600.0,0.01718321]
[1763955679085,0.34439258,87601.0,87600.0,0.00059321]
[1763955679853,0.34439258,87601.0,87600.0,0.01718321]
[1763955680227,0.34439258,87601.0,87600.0,0.01780682]
[1763955680434,0.34439258,87601.0,87600.0,0.04091682]
[1763955681401,0.34439258,87601.0,87600.0,0.01780682]
[1763955683268,0.34439258,87601.0,87600.0,0.04091682]
[1763955684211,0.34439258,87601.0,87600.0,0.01780682]
[1763955684416,0.34439258,87601.0,87600.0,0.04091682]
[1763955684619,0.34439258,87601.0,87600.0,0.01780682]
[1763955685193,0.323,87601.0,87600.0,0.01780682]
[1763955687816,0.323,87601.0,87600.0,0.04091682]
[1763955689594,0.323,87601.0,87600.0,0.04191682]
[1763955689804,0.323,87601.0,87600.0,0.04091682]
[1763955690008,0.323,87601.0,87600.0,0.04191682]
[1763955690667,0.323,87601.0,87600.0,0.04091682]
[1763955690896,0.323,87601.0,87600.0,0.04191682]
[1763955691220,0.323,87601.0,87600.0,0.04291682]
[1763955691429,0.323,87601.0,87600.0,0.04091682]
[1763955691633,0.323,87601.0,87600.0,0.04947776]
[1763955691822,0.323,87601.0,87600.0,0.05047776]
[1763955693059,0.08483287,87621.0,87600.0,0.05047776]
[1763955693238,2.0,87619.0,87609.0,0.01659]
[1763955693441,0.03432606,87614.0,87609.0,0.01659]
[1763955693644,0.323,87618.0,87610.0,0.03575]
[1763955693861,0.323,87618.0,87617.0,0.01598]
[1763955694040,1.10200459,87640.0,87617.0,0.01598]
[1763955694041,0.0343239,87619.0,87617.0,0.01598]
[1763955694241,0.08474302,87643.0,87618.0,0.03575]
[1763955694242,2.0,87642.0,87618.0,0.03575]
[1763955694425,2.0,87640.0,87639.0,0.01133]
[1763955694621,2.02140789,87640.0,87639.0,0.01133]
[1763955694874,2.34440789,87640.0,87639.0,0.01133]
[1763955695109,2.02140789,87640.0,87639.0,0.01133]
[1763955695310,2.02140789,87640.0,87639.0,0.05173]
[1763955695458,2.0,87640.0,87639.0,0.05173]
[1763955695660,2.0,87640.0,87639.0,0.05273]
[1763955695861,2.323,87640.0,87639.0,0.05273]
[1763955696162,2.0,87640.0,87639.0,0.05273]
[1763955696604,2.323,87640.0,87639.0,0.05273]
[1763955697199,2.323,87640.0,87639.0,0.05173]
[1763955697363,2.323,87640.0,87639.0,0.05273]
[1763955697563,2.323,87640.0,87639.0,0.05373]
[1763955699716,2.323,87640.0,87639.0,0.002]
[1763955700505,2.323,87640.0,87639.0,0.001]
[1763955700705,0.323,87639.0,87630.0,0.01133]
[1763955700906,0.323,87637.0,87630.0,0.01142363]
[1763955701891,0.03431911,87641.0,87636.0,0.01598]
[1763955702017,2.0,87638.0,87630.0,0.01142363]
[1763955702221,0.03431911,87641.0,87630.0,0.01142363]
[1763955702417,0.323,87637.0,87630.0,0.01142363]
[1763955702650,0.03431911,87641.0,87631.0,0.02442]
[1763955702847,2.323,87638.0,87637.0,0.0157]
[1763955703055,0.323,87637.0,87631.0,0.02442]
[1763955703454,0.323,87637.0,87636.0,0.0157]
[1763955703992,0.00125913,87645.0,87636.0,0.03837]
[1763955704132,0.02442,87637.0,87636.0,0.0157]
[1763955704938,0.02442,87637.0,87636.0,0.001]
[1763955705951,0.02442,87637.0,87636.0,0.002]
[1763955706404,0.02442,87637.0,87631.0,0.0116]
[1763955709078,0.34742,87637.0,87631.0,0.0116]
[1763955709857,0.323,87637.0,87631.0,0.0116]
[1763955710124,0.323,87636.0,87631.0,0.0116]
[1763955710333,0.34567,87636.0,87631.0,0.0116]
[1763955710536,0.56262856,87636.0,87631.0,0.0116]
[1763955710917,0.03408096,87635.0,87631.0,0.0116]
[1763955711114,0.03408096,87635.0,87630.0,9.363e-05]
[1763955711115,2.323,87632.0,87630.0,9.363e-05]
[1763955711328,2.323,87631.0,87630.0,9.363e-05]
[1763955711698,2.55122973,87631.0,87630.0,9.363e-05]
[1763955712988,2.323,87631.0,87630.0,9.363e-05]
[1763955713193,2.55122973,87631.0,87630.0,9.363e-05]
[1763955713628,2.55222973,87631.0,87630.0,9.363e-05]
[1763955714435,2.57356979,87631.0,87630.0,9.363e-05]
[1763955715315,2.34534006,87631.0,87630.0,0.01579363]
[1763955715515,2.324,87631.0,87630.0,9.363e-05]
[1763955716072,2.55222973,87631.0,87630.0,9.363e-05]
[1763955716269,2.324,87631.0,87630.0,9.363e-05]
[1763955716495,2.13632365,87631.0,87630.0,9.363e-05]
[1763955716701,2.11497458,87631.0,87630.0,9.363e-05]
[1763955718070,2.13633125,87631.0,87630.0,9.363e-05]
[1763955718269,2.3645612,87631.0,87630.0,9.363e-05]
[1763955720832,2.3645612,87631.0,87612.0,0.00024941]
[1763955720833,2.3422512,87613.0,87612.0,0.00024941]
[1763955721037,2.4548318,87613.0,87612.0,0.00024941]
[1763955721572,2.4664318,87613.0,87612.0,0.00024941]
[1763955722306,2.4674318,87613.0,87612.0,0.00024941]
[1763955723565,2.55362684,87613.0,87612.0,0.00024941]
[1763955726237,2.32535022,87613.0,87612.0,0.00024941]
[1763955727522,2.53226995,87613.0,87612.0,0.00024941]
[1763955728134,2.55361094,87613.0,87612.0,0.00024941]
[1763955728328,2.55360888,87613.0,87612.0,0.00024941]
[1763955728725,2.55260888,87613.0,87612.0,0.00024941]
[1763955729654,2.55360888,87613.0,87612.0,0.00024941]
[1763955729851,2.23060888,87613.0,87612.0,0.00024941]
[1763955730302,2.01928247,87601.0,87600.0,0.0002]
[1763955730487,2.01928247,87601.0,87580.0,0.0002]
[1763955730488,2.01930854,87591.0,87580.0,0.0002]
[1763955730687,0.01141565,87599.0,87585.0,0.02369]
[1763955730887,0.01234,87591.0,87590.0,0.01696]
[1763955731266,0.01234,87591.0,87590.0,0.00108609]
[1763955731578,0.03007404,87591.0,87590.0,0.04133609]
[1763955731899,0.01234,87591.0,87590.0,0.04133609]
[1763955733038,0.01234,87591.0,87590.0,0.01764609]
[1763955733184,0.01234,87591.0,87590.0,0.00108609]
[1763955733984,0.01234,87591.0,87590.0,0.01764609]
[1763955739035,0.01234,87591.0,87590.0,0.04133609]
[1763955739852,0.01234,87591.0,87590.0,0.0479377]
[1763955740055,0.01234,87591.0,87590.0,0.0242477]
[1763955740261,0.01234,87591.0,87590.0,0.01764609]
[1763955741293,0.01234,87591.0,87590.0,0.04133609]
[1763955741702,0.01234,87591.0,87590.0,0.01764609]
[1763955741905,0.01234,87591.0,87590.0,0.04133609]
[1763955742328,0.01787411,87599.0,87590.0,0.0479377]
[1763955742481,0.58808526,87610.0,87598.0,0.01234]
[1763955742687,0.09122371,87606.0,87598.0,0.0289]
[1763955742979,0.09122371,87606.0,87599.0,0.02369]
[1763955743177,0.09122371,87606.0,87605.0,0.01656]
[1763955743377,0.45276702,87606.0,87605.0,0.01656]
[1763955743508,0.43140635,87606.0,87605.0,0.01656]
[1763955743707,0.34018264,87606.0,87605.0,0.04025]
[1763955745696,0.34018264,87606.0,87605.0,0.04125]
[1763955745899,0.323,87608.0,87605.0,0.01756]
[1763955746268,0.323,87608.0,87605.0,0.01856]
[1763955746469,0.33892541,87608.0,87605.0,0.04225]
[1763955746668,0.33892541,87608.0,87605.0,0.01856]
[1763955746971,0.01592541,87608.0,87605.0,0.01756]
[1763955747396,0.02369,87609.0,87605.0,0.01656]
[1763955747572,0.02138635,87608.0,87605.0,0.01756]
[1763955747729,0.02369,87609.0,87605.0,0.01756]
[1763955747967,0.02138635,87608.0,87605.0,0.01756]
[1763955748167,0.02369,87609.0,87605.0,0.04125]
[1763955748394,0.02138635,87608.0,87605.0,0.01756]
[1763955748729,0.02369,87609.0,87605.0,0.01756]
[1763955748730,0.02138635,87607.0,87605.0,0.01756]
[1763955748868,0.02138635,87606.0,87605.0,0.01756]
[1763955749092,0.02138635,87608.0,87605.0,0.01756]
[1763955749343,0.02138635,87607.0,87606.0,0.01234]
[1763955749718,0.03775377,87608.0,87606.0,0.0289]
[1763955749918,0.02138635,87607.0,87606.0,0.0289]
[1763955750221,0.02138635,87607.0,87606.0,0.01234]
[1763955750654,0.01669813,87608.0,87606.0,0.0289]
[1763955750850,0.01669813,87608.0,87607.0,0.01656]
[1763955751052,0.02369,87609.0,87607.0,0.01656]
[1763955751229,0.02369,87609.0,87608.0,0.04025]
[1763955752610,0.02369,87609.0,87608.0,0.04125]
[1763955753024,0.02369,87609.0,87608.0,0.04225]
[1763955754163,0.04012247,87609.0,87608.0,0.04225]
[1763955755600,0.58808526,87630.0,87608.0,0.04225]
[1763955755804,0.02138935,87629.0,87619.0,0.01225]
[1763955756001,0.02138935,87628.0,87619.0,0.01225]
[1763955756320,0.35732248,87629.0,87620.0,0.02369]
[1763955756479,0.0213775,87628.0,87627.0,0.01225]
[1763955756867,0.03735965,87628.0,87627.0,0.02857]
[1763955757263,0.01598215,87628.0,87627.0,0.02857]
[1763955757510,0.35732248,87629.0,87627.0,0.02857]
[1763955757713,0.35732248,87629.0,87627.0,0.01225]
[1763955758150,2.0,87625.0,87604.0,0.00024945]
[1763955758281,0.323,87613.0,87604.0,0.00024945]
[1763955758468,0.2282937,87607.0,87604.0,0.00024945]
[1763955758671,0.22829747,87605.0,87604.0,0.00024945]
[1763955758877,0.23970775,87607.0,87604.0,0.00024945]
[1763955759156,0.33441448,87608.0,87604.0,0.00024945]
[1763955759351,0.323,87608.0,87604.0,0.00024945]
[1763955760109,0.35810435,87609.0,87604.0,0.00024945]
[1763955760320,0.01141461,87607.0,87604.0,0.00024945]
[1763955760531,0.323,87605.0,87604.0,0.00224945]
[1763955760737,0.323,87605.0,87604.0,0.00124945]
[1763955761516,0.323,87606.0,87604.0,0.00124945]
[1763955761927,0.323,87606.0,87604.0,0.00024945]
[1763955762128,0.5512952,87606.0,87604.0,0.00024945]
[1763955762391,0.22908747,87605.0,87604.0,0.00024945]
[1763955762689,0.32031118,87605.0,87604.0,0.00024945]
[1763955764213,2.34248152,87605.0,87604.0,0.00024945]
[1763955764413,2.66632508,87605.0,87604.0,0.00024945]
[1763955766171,2.66632508,87605.0,87590.0,0.0004]
[1763955766172,0.55133396,87591.0,87590.0,0.0004]
[1763955766351,0.64255767,87591.0,87590.0,0.0004]
[1763955766759,0.65480767,87591.0,87590.0,0.0004]
[1763955767359,0.65480767,87591.0,87590.0,0.00079321]
[1763955767632,0.65580767,87591.0,87590.0,0.00079321]
[1763955768098,0.65480767,87591.0,87590.0,0.00079321]
[1763955769652,0.65580767,87591.0,87590.0,0.00079321]
[1763955771451,0.42747371,87591.0,87590.0,0.00079321]
[1763955771969,0.33625,87591.0,87590.0,0.01689983]
[1763955772375,0.33625,87591.0,87590.0,0.04150983]
[1763955773171,0.33525,87591.0,87590.0,0.00122983]
[1763955776250,0.01225,87591.0,87590.0,0.00122983]
[1763955778687,0.56358396,87591.0,87590.0,0.00122983]
[1763955780769,0.33525,87591.0,87590.0,0.00122983]
[1763955781173,0.56358396,87591.0,87590.0,0.00122983]
[1763955781780,0.33525,87591.0,87590.0,0.00122983]
[1763955781985,0.56358396,87591.0,87590.0,0.00122983]
[1763955784201,0.33525,87591.0,87590.0,0.00122983]
[1763955784589,0.56358396,87591.0,87590.0,0.00122983]
[1763955784792,0.33525,87591.0,87590.0,0.00122983]
[1763955785227,0.56358396,87591.0,87590.0,0.00122983]
[1763955786449,0.58494818,87591.0,87590.0,0.00122983]
[1763955787912,2.22836003,87581.0,87580.0,0.0002]
[1763955788112,2.22836003,87581.0,87545.0,0.03672]
[1763955788113,0.5513861,87571.0,87545.0,0.03672]
[1763955788274,0.57275032,87571.0,87553.0,0.01214]
[1763955788480,0.34436422,87571.0,87553.0,0.01214]
[1763955788731,0.323,87571.0,87553.0,0.01214]
[1763955788905,0.41025699,87571.0,87553.0,0.01214]
[1763955789086,0.41483674,87571.0,87570.0,0.01689]
[1763955789302,0.32757975,87571.0,87570.0,0.0004]
[1763955789501,0.55696585,87571.0,87570.0,0.0004]
[1763955790045,0.32857975,87571.0,87570.0,0.0004]
[1763955790545,0.41566521,87571.0,87570.0,0.0004]
[1763955790763,0.41566521,87571.0,87570.0,0.01689]
[1763955791570,0.41566521,87571.0,87570.0,0.0004]
[1763955791571,0.66541995,87571.0,87570.0,0.0004]
[1763955791894,2.66541995,87571.0,87570.0,0.0004]
[1763955793712,2.66541995,87571.0,87570.0,0.00102394]
[1763955802385,2.66441995,87571.0,87570.0,0.00102394]
[1763955802628,2.66541995,87571.0,87570.0,0.00102394]
[1763955803070,0.55141219,87561.0,87550.0,0.0002]
[1763955803270,0.57278083,87561.0,87550.0,0.0002]
[1763955803687,0.57736128,87561.0,87560.0,0.00051204]
[1763955804307,0.57836128,87561.0,87560.0,0.00051204]
[1763955805312,0.57936128,87561.0,87560.0,0.00051204]
[1763955805472,0.57836128,87561.0,87560.0,0.00051204]
[1763955805888,0.34994909,87561.0,87560.0,0.00051204]
[1763955806092,0.57836128,87561.0,87560.0,0.00051204]
[1763955806303,0.58036128,87561.0,87560.0,0.00051204]
[1763955806501,0.57936128,87561.0,87560.0,0.00051204]
[1763955806928,0.35194909,87561.0,87560.0,0.00051204]
[1763955807276,0.35094909,87561.0,87560.0,0.00051204]
[1763955807423,0.34894909,87561.0,87560.0,0.00051204]
[1763955807625,0.35094909,87561.0,87560.0,0.00051204]
[1763955808215,0.34994909,87561.0,87560.0,0.00051204]
[1763955808436,0.19615018,87561.0,87560.0,0.00051204]
[1763955808643,0.19715018,87561.0,87560.0,0.00051204]
[1763955809052,0.02794909,87561.0,87560.0,0.00051204]
[1763955809257,0.02794909,87561.0,87560.0,0.04158204]
[1763955810343,0.02594909,87561.0,87560.0,0.04158204]
[1763955811668,0.02136864,87561.0,87560.0,0.04158204]
[1763955812186,0.51798262,87570.0,87560.0,0.01700204]
[1763955812392,0.51798262,87570.0,87561.0,0.02458]
[1763955812592,0.30423269,87570.0,87561.0,0.02458]
[1763955812879,0.03434315,87574.0,87569.0,0.01649]
[1763955813086,0.03434315,87574.0,87573.0,0.02863]
[1763955813432,0.51798262,87580.0,87573.0,0.02863]
[1763955813614,2.0,87579.0,87573.0,0.02863]
[1763955813816,2.0,87578.0,87573.0,0.02863]
[1763955814202,0.323,87577.0,87574.0,0.0234]
[1763955814404,0.001,87574.0,87573.0,0.01214]
[1763955814629,0.001,87574.0,87567.0,0.0123]
[1763955814630,0.23979828,87574.0,87567.0,0.0123]
[1763955815131,0.33441878,87575.0,87567.0,0.0123]
[1763955815320,0.56279492,87575.0,87567.0,0.0123]
[1763955815991,0.01141891,87574.0,87567.0,0.0123]
[1763955816156,0.01141917,87572.0,87560.0,0.0002]
[1763955816359,0.323,87569.0,87560.0,0.0002]
[1763955817491,0.323,87569.0,87560.0,0.0236]
[1763955817715,0.323,87569.0,87568.0,0.02817]
[1763955817901,0.08647159,87576.0,87568.0,0.02817]
[1763955818285,0.08733777,87576.0,87568.0,0.02817]
[1763955818627,0.323,87575.0,87568.0,0.02817]
[1763955819556,0.02817,87575.0,87568.0,0.02817]
[1763955821334,0.01141904,87573.0,87562.0,0.00024963]
[1763955821562,0.85240179,87572.0,87563.0,0.0123]
[1763955821726,0.323,87568.0,87562.0,0.00024963]
[1763955821931,0.33441969,87568.0,87562.0,0.00024963]
[1763955822368,0.323,87568.0,87562.0,0.00024963]
[1763955822570,0.323,87566.0,87562.0,0.00024963]
[1763955822719,0.01141982,87567.0,87562.0,0.00024963]
[1763955822720,0.55140697,87563.0,87562.0,0.00024963]
[1763955823144,0.323,87563.0,87562.0,0.00024963]
[1763955823702,0.32439,87563.0,87562.0,0.00024963]
[1763955824208,0.34577194,87563.0,87562.0,0.00024963]
[1763955824771,0.57417891,87563.0,87562.0,0.00024963]
[1763955825595,0.34577194,87563.0,87562.0,0.00024963]
[1763955825796,0.57417891,87563.0,87562.0,0.00024963]
[1763955826013,0.34577194,87563.0,87562.0,0.00024963]
[1763955826214,0.34438194,87563.0,87562.0,0.02760963]
[1763955826618,0.34438194,87563.0,87562.0,0.01199963]
[1763955827741,0.34438194,87563.0,87562.0,0.02760963]
[1763955828145,0.34438194,87563.0,87562.0,0.05236963]
[1763955828304,0.34438194,87563.0,87562.0,0.02760963]
[1763955830118,0.08427999,87576.0,87562.0,0.05236963]
[1763955830318,0.02137762,87575.0,87564.0,0.01561]